fUST/lending_fUST_20250628
["ID","MTS","AMOUNT","RATE_DAILY","PERIOD"]
[368276645,1751085040746,-460.0,0.00019452,2]
[368276646,1751085040756,-460.0,0.00019452,2]
[368276647,1751085040765,-460.0,0.00019452,2]
[368276648,1751085040774,-460.0,0.00019452,2]
[368276649,1751085040784,-460.0,0.00019452,2]
[368276650,1751085040794,-511.26418467,0.00019452,2]
[368276651,1751085040804,-1997.11,0.00019452,2]
[368276652,1751085040814,-460.0,0.00019452,2]
[368276653,1751085040823,-1957.89,0.00019452,2]
[368276654,1751085040832,-460.0,0.00019452,2]
[368276655,1751085040841,-460.0,0.00019452,2]
[368276656,1751085040850,-460.0,0.00019452,2]
[368276657,1751085040859,-460.0,0.00019452,2]
[368276658,1751085040868,-460.0,0.00019452,2]
[368276659,1751085040878,-160.0,0.00019452,2]
[368276660,1751085040887,-2555.1,0.00019452,2]
[368276661,1751085040896,-460.0,0.00019452,2]
[368276662,1751085040905,-626.01,0.00019452,2]
[368276663,1751085040914,-945.23,0.00019452,2]
[368276664,1751085040923,-2959.3,0.00019452,2]
[368276665,1751085040932,-4178.89,0.00019452,2]
[368276666,1751085040942,-460.0,0.00019452,2]
[368276667,1751085040952,-460.0,0.00019452,2]
[368276668,1751085040961,-460.0,0.00019452,2]
[368276669,1751085040970,-460.0,0.00019452,2]
[368276670,1751085040979,-460.0,0.00019452,2]
[368276671,1751085040988,-929.77,0.00019452,2]
[368276672,1751085040998,-748.96,0.00019452,2]
[368276673,1751085041007,-517.34,0.00019452,2]
[368276674,1751085041016,-2230.94,0.00019452,2]
[368276675,1751085041025,-1772.49,0.00019452,2]
[368276676,1751085041034,-1368.73,0.00019452,2]
[368276677,1751085041043,-460.0,0.00019452,2]
[368276678,1751085041052,-563.94,0.00019452,2]
[368276679,1751085041061,-201.9969646,0.00019452,2]
[368276680,1751085041070,-460.0,0.00019452,2]
[368276681,1751085041079,-460.0,0.00019452,2]
[368276682,1751085041088,-460.0,0.00019452,2]
[368276683,1751085041097,-460.0,0.00019452,2]
[368276684,1751085041106,-740.09,0.00019452,2]
[368276685,1751085041116,-1825.1,0.00019452,2]
[368276686,1751085041124,-460.0,0.00019452,2]
[368276687,1751085041134,-567.91,0.00019452,2]
[368276688,1751085041143,-4347.56,0.00019452,2]
[368276689,1751085041152,-460.0,0.00019452,2]
[368276690,1751085041161,-1456.68,0.00019452,2]
[368276691,1751085041171,-460.0,0.00019452,2]
[368276692,1751085041180,-460.0,0.00019452,2]
[368276693,1751085041189,-460.0,0.00019452,2]
[368276694,1751085041199,-460.0,0.00019452,2]
[368276695,1751085041208,-460.0,0.00019452,2]
[368276696,1751085041218,-460.0,0.00019452,2]
[368276697,1751085041228,-460.0,0.00019452,2]
[368276698,1751085041237,-460.0,0.00019452,2]
[368276699,1751085041246,-460.0,0.00019452,2]
[368276700,1751085041259,-460.0,0.00019452,2]
[368276701,1751085041268,-973.88,0.00019452,2]
[368276702,1751085041277,-980.96,0.00019452,2]
[368276703,1751085041287,-833.07,0.00019452,2]
[368276704,1751085041297,-460.0,0.00019452,2]
[368276705,1751085041306,-1723.66,0.00019452,2]
[368276706,1751085041315,-460.0,0.00019452,2]
[368276707,1751085041324,-460.0,0.00019452,2]
[368276708,1751085041333,-528.85670793,0.00019452,2]
[368276709,1751085041343,-460.0,0.00019452,2]
[368276710,1751085041352,-393.04653521,0.00019452,2]
[368276711,1751085041361,-1643.37,0.00019452,2]
[368276712,1751085041370,-2082.61,0.00019452,2]
[368276713,1751085041380,-1281.6015977,0.00019626,2]
[368276714,1751085041389,-460.0,0.00019726,2]
[368276715,1751085041398,-460.0,0.00019726,2]
[368276716,1751085041407,-469.71532805,0.00019726,2]
[368276717,1751085041417,-508.19,0.00019726,2]
[368276718,1751085041427,-460.0,0.00019726,2]
[368276719,1751085041436,-199.28758949,0.00019726,2]
[368276720,1751085041446,-666.01,0.00019726,2]
[368276721,1751085041455,-460.0,0.00019726,2]
[368276722,1751085041464,-460.0,0.00019726,2]
[368276723,1751085041474,-460.0,0.00019726,2]
[368276724,1751085041482,-460.0,0.00019726,2]
[368276725,1751085041492,-454.77441597,0.00019726,2]
[368276726,1751085041501,-460.0,0.00019726,2]
[368276727,1751085041510,-729.39,0.00019726,2]
[368276728,1751085041519,-460.0,0.00019726,2]
[368276729,1751085041528,-314.65,0.00019726,2]
[368276730,1751085041538,-460.0,0.00019726,2]
[368276731,1751085041547,-460.0,0.00019726,2]
[368276732,1751085041556,-460.0,0.00019726,2]
[368276733,1751085041565,-460.0,0.00019726,2]
[368276734,1751085041574,-460.0,0.00019726,2]
[368276735,1751085041583,-460.0,0.00019726,2]
[368276736,1751085041594,-460.0,0.00019726,2]
[368276737,1751085041603,-460.0,0.00019726,2]
[368276738,1751085041612,-460.0,0.00019726,2]
[368276739,1751085041621,-2594.14,0.00019726,2]
[368276740,1751085041630,-2386.93,0.00019726,2]
[368276741,1751085041640,-584.03,0.00019726,2]
[368276742,1751085041649,-460.0,0.00019726,2]
[368276743,1751085041658,-475.50123312,0.00019726,2]
[368276744,1751085041667,-672.73,0.00019726,2]
[368276745,1751085041676,-462.16,0.00019726,2]
[368276746,1751085041686,-460.0,0.00019726,2]
[368276747,1751085041698,-1138.53,0.00019726,2]
[368276748,1751085041708,-460.0,0.00019726,2]
[368276749,1751085041718,-460.0,0.00019726,2]
[368276750,1751085041727,-460.0,0.00019726,2]
[368276751,1751085041737,-460.0,0.00019726,2]
[368276752,1751085041746,-460.0,0.00019726,2]
[368276753,1751085041756,-460.0,0.00019726,2]
[368276754,1751085041766,-460.0,0.00019726,2]
[368276755,1751085041775,-460.0,0.00019726,2]
[368276756,1751085041784,-460.0,0.00019726,2]
[368276757,1751085041794,-1997.11,0.00019726,2]
[368276758,1751085041804,-460.0,0.00019726,2]
[368276759,1751085041813,-1957.89,0.00019726,2]
[368276760,1751085041823,-460.0,0.00019726,2]
[368276761,1751085041832,-460.0,0.00019726,2]
[368276762,1751085041842,-460.0,0.00019726,2]
[368276763,1751085041851,-460.0,0.00019726,2]
[368276764,1751085041861,-460.0,0.00019726,2]
[368276765,1751085041870,-460.0,0.00019726,2]
[368276766,1751085041880,-2555.1,0.00019726,2]
[368276767,1751085041889,-626.01,0.00019726,2]
[368276768,1751085041899,-945.23,0.00019726,2]
[368276769,1751085041908,-2959.3,0.00019726,2]
[368276770,1751085041917,-4178.89,0.00019726,2]
[368276771,1751085041926,-460.0,0.00019726,2]
[368276772,1751085041935,-460.0,0.00019726,2]
[368276773,1751085041945,-460.0,0.00019726,2]
[368276774,1751085041954,-460.0,0.00019726,2]
[368276775,1751085041964,-460.0,0.00019726,2]
[368276776,1751085041973,-929.77,0.00019726,2]
[368276777,1751085041982,-748.96,0.00019726,2]
[368276778,1751085041991,-517.34,0.00019726,2]
[368276779,1751085042000,-2230.94,0.00019726,2]
[368276780,1751085042009,-1772.49,0.00019726,2]
[368276781,1751085042019,-1368.73,0.00019726,2]
[368276782,1751085042028,-460.0,0.00019726,2]
[368276783,1751085042037,-563.94,0.00019726,2]
[368276784,1751085042046,-460.0,0.00019726,2]
[368276785,1751085042055,-460.0,0.00019726,2]
[368276786,1751085042065,-460.0,0.00019726,2]
[368276787,1751085042074,-460.0,0.00019726,2]
[368276788,1751085042083,-740.09,0.00019726,2]
[368276789,1751085042093,-1825.1,0.00019726,2]
[368276790,1751085042102,-512.59530157,0.00019726,2]
[368276791,1751085042111,-567.91,0.00019726,2]
[368276792,1751085042121,-4347.56,0.00019726,2]
[368276793,1751085042130,-1456.68,0.00019726,2]
[368276794,1751085042139,-460.0,0.00019726,2]
[368276795,1751085042150,-460.0,0.00019726,2]
[368276796,1751085042160,-460.0,0.00019726,2]
[368276797,1751085042169,-460.0,0.00019726,2]
[368276798,1751085042178,-460.0,0.00019726,2]
[368276799,1751085042188,-402.57191412,0.00019726,2]
[368276800,1751085042197,-460.0,0.00019726,2]
[368276801,1751085042206,-460.0,0.00019726,2]
[368276802,1751085042217,-460.0,0.00019726,2]
[368276803,1751085042226,-460.0,0.00019726,2]
[368276804,1751085042236,-460.0,0.00019726,2]
[368276805,1751085042248,-973.88,0.00019726,2]
[368276806,1751085042258,-980.96,0.00019726,2]
[368276807,1751085042267,-833.07,0.00019726,2]
[368276808,1751085042276,-460.0,0.00019726,2]
[368276809,1751085042286,-1723.66,0.00019726,2]
[368276810,1751085042295,-460.0,0.00019726,2]
[368276811,1751085042304,-460.0,0.00019726,2]
[368276812,1751085042314,-460.0,0.00019726,2]
[368276813,1751085042324,-1643.37,0.00019726,2]
[368276814,1751085042333,-2082.61,0.00019726,2]
[368276815,1751085042342,-7703.96641671,0.000199,2]
[368276816,1751085042351,-487.1023781,0.00019912,2]
[368276817,1751085042361,-643.71513718,0.00019953,2]
[368276818,1751085042370,-500.0,0.00019963,2]
[368276819,1751085042379,-460.0,0.0002,2]
[368276820,1751085042389,-460.0,0.0002,2]
[368276821,1751085042399,-508.19,0.0002,2]
[368276822,1751085042408,-460.0,0.0002,2]
[368276823,1751085042418,-666.01,0.0002,2]
[368276824,1751085042427,-460.0,0.0002,2]
[368276825,1751085042437,-460.0,0.0002,2]
[368276826,1751085042558,-460.0,0.0002,2]
[368276827,1751085042579,-460.0,0.0002,2]
[368276828,1751085042588,-460.0,0.0002,2]
[368276829,1751085042598,-729.39,0.0002,2]
[368276830,1751085042607,-460.0,0.0002,2]
[368276831,1751085042616,-187.97660492,0.0002,2]
[368276832,1751085042626,-460.0,0.0002,2]
[368276833,1751085042635,-460.0,0.0002,2]
[368276834,1751085042644,-460.0,0.0002,2]
[368276835,1751085042654,-460.0,0.0002,2]
[368276836,1751085042663,-460.0,0.0002,2]
[368276837,1751085042673,-460.0,0.0002,2]
[368276838,1751085042682,-564.17851885,0.0002,2]
[368276839,1751085042696,-308.66903002,0.0002,2]
[368276840,1751085042705,-2594.14,0.0002,2]
[368276841,1751085042715,-2386.93,0.0002,2]
[368276842,1751085042725,-584.03,0.0002,2]
[368276843,1751085042734,-460.0,0.0002,2]
[368276844,1751085042744,-672.73,0.0002,2]
[368276845,1751085042753,-462.16,0.0002,2]
[368276846,1751085042762,-460.0,0.0002,2]
[368276847,1751085042772,-1138.53,0.0002,2]
[368276848,1751085042783,-460.0,0.0002,2]
[368276849,1751085042792,-460.0,0.0002,2]
[368276850,1751085042801,-460.0,0.0002,2]
[368276851,1751085042811,-460.0,0.0002,2]
[368276852,1751085042824,-511.65254243,0.0002,2]
[368276853,1751085042833,-460.0,0.0002,2]
[368276854,1751085042843,-460.0,0.0002,2]
[368276855,1751085042852,-460.0,0.0002,2]
[368276856,1751085042861,-1997.11,0.0002,2]
[368276857,1751085042871,-160.0,0.0002,3]
[368276858,1751085042880,-460.0,0.0002,2]
[368276859,1751085042890,-1957.89,0.0002,2]
[368276860,1751085042899,-460.0,0.0002,2]
[368276861,1751085042908,-460.0,0.0002,2]
[368276862,1751085042917,-460.0,0.0002,2]
[368276863,1751085042926,-460.0,0.0002,2]
[368276864,1751085042936,-460.0,0.0002,2]
[368276865,1751085042945,-425.25525534,0.0002,2]
[368276866,1751085042955,-2555.1,0.0002,2]
[368276867,1751085042964,-626.01,0.0002,2]
[368276868,1751085042973,-945.23,0.0002,2]
[368276869,1751085042983,-2959.3,0.0002,2]
[368276870,1751085042992,-4178.89,0.0002,2]
[368276871,1751085043002,-460.0,0.0002,2]
[368276872,1751085043011,-460.0,0.0002,2]
[368276873,1751085043021,-460.0,0.0002,2]
[368276874,1751085043030,-460.0,0.0002,2]
[368276875,1751085043040,-655.26651717,0.0002,2]
[368276876,1751085043049,-460.0,0.0002,2]
[368276877,1751085043058,-929.77,0.0002,2]
[368276878,1751085043068,-748.96,0.0002,2]
[368276879,1751085043077,-517.34,0.0002,2]
[368276880,1751085043086,-2230.94,0.0002,2]
[368276881,1751085043095,-1772.49,0.0002,2]
[368276882,1751085043105,-1368.73,0.0002,2]
[368276883,1751085043114,-460.0,0.0002,2]
[368276884,1751085043123,-563.94,0.0002,2]
[368276885,1751085043132,-460.0,0.0002,2]
[368276886,1751085043142,-460.0,0.0002,2]
[368276887,1751085043151,-584.23005202,0.0002,2]
[368276888,1751085043161,-460.0,0.0002,2]
[368276889,1751085043170,-740.09,0.0002,2]
[368276890,1751085043181,-1825.1,0.0002,2]
[368276891,1751085043190,-567.91,0.0002,2]
[368276892,1751085043199,-4347.56,0.0002,2]
[368276893,1751085043209,-1456.68,0.0002,2]
[368276894,1751085043220,-460.0,0.0002,2]
[368276895,1751085043230,-460.0,0.0002,2]
[368276896,1751085043239,-346.95057223,0.0002,2]
[368276897,1751085043251,-460.0,0.0002,2]
[368276898,1751085043260,-460.0,0.0002,2]
[368276899,1751085043269,-460.0,0.0002,2]
[368276900,1751085043278,-460.0,0.0002,2]
[368276901,1751085043288,-460.0,0.0002,2]
[368276903,1751085043297,-460.0,0.0002,2]
[368276905,1751085043306,-460.0,0.0002,2]
[368276907,1751085043315,-973.88,0.0002,2]
[368276909,1751085043325,-980.96,0.0002,2]
[368276911,1751085043335,-833.07,0.0002,2]
[368276913,1751085043344,-1723.66,0.0002,2]
[368276915,1751085043354,-390.0,0.0002,2]
[368276917,1751085043362,-460.0,0.0002,2]
[368276919,1751085043372,-460.0,0.0002,2]
[368276921,1751085043380,-1643.37,0.0002,2]
[368276923,1751085043390,-2082.61,0.0002,2]
[368276925,1751085043399,-160.0,0.00020071,2]
[368276927,1751085043408,-214.95397287,0.00020071,2]
[368276929,1751085043417,-160.0,0.00020071,2]
[368276931,1751085043426,-160.0,0.00020071,2]
[368276933,1751085043436,-12564.78152626,0.00020071,2]
[368276935,1751085043445,-160.0,0.00020071,2]
[368276937,1751085043454,-160.0,0.00020071,2]
[368276939,1751085043462,-230.28494567,0.00020071,2]
[368276941,1751085043472,-847.18566335,0.00020071,2]
[368276943,1751085043481,-837.06984471,0.00020071,2]
[368276944,1751085043490,-213.78848551,0.00020071,2]
[368276946,1751085043499,-160.0,0.00020071,2]
[368276948,1751085043509,-7703.96641646,0.00020141,2]
[368276950,1751085043518,-297.062967,0.00020187,2]
[368276952,1751085043527,-500.0,0.00020234,2]
[368276954,1751085043536,-1281.60159767,0.00020242,2]
[368276956,1751085043546,-420.0,0.00020243,2]
[368276958,1751085043557,-460.0,0.00020273,2]
[368276960,1751085043566,-508.19,0.00020273,2]
[368276962,1751085043575,-460.0,0.00020273,2]
[368276964,1751085043584,-666.01,0.00020273,2]
[368276965,1751085043594,-452.75039927,0.00020273,2]
[368276966,1751085043603,-194.20416739,0.00020273,2]
[368276967,1751085043613,-460.0,0.00020273,2]
[368276968,1751085043622,-460.0,0.00020273,2]
[368276969,1751085043631,-460.0,0.00020273,2]
[368276970,1751085043641,-729.39,0.00020273,2]
[368276971,1751085043650,-460.0,0.00020273,2]
[368276972,1751085043659,-460.0,0.00020273,2]
[368276973,1751085043668,-460.0,0.00020273,2]
[368276974,1751085043678,-460.0,0.00020273,2]
[368276975,1751085043687,-460.0,0.00020273,2]
[368276976,1751085043696,-460.0,0.00020273,2]
[368276977,1751085043705,-2594.14,0.00020273,2]
[368276978,1751085043715,-2386.93,0.00020273,2]
[368276979,1751085043724,-584.03,0.00020273,2]
[368276980,1751085043734,-460.0,0.00020273,2]
[368276981,1751085043743,-672.73,0.00020273,2]
[368276982,1751085043752,-462.16,0.00020273,2]
[368276983,1751085043761,-460.0,0.00020273,2]
[368276984,1751085043770,-1138.53,0.00020273,2]
[368276985,1751085043780,-460.0,0.00020273,2]
[368276986,1751085043790,-460.0,0.00020273,2]
[368276987,1751085043799,-460.0,0.00020273,2]
[368276988,1751085043808,-460.0,0.00020273,2]
[368276989,1751085043818,-460.0,0.00020273,2]
[368276990,1751085043828,-460.0,0.00020273,2]
[368276991,1751085043837,-1997.11,0.00020273,2]
[368276992,1751085043851,-460.0,0.00020273,2]
[368276993,1751085043865,-1957.89,0.00020273,2]
[368276994,1751085043878,-460.0,0.00020273,2]
[368276995,1751085043891,-460.0,0.00020273,2]
[368276996,1751085043903,-460.0,0.00020273,2]
[368276997,1751085043913,-460.0,0.00020273,2]
[368276998,1751085043926,-460.0,0.00020273,2]
[368276999,1751085043938,-2555.1,0.00020273,2]
[368277000,1751085043949,-626.01,0.00020273,2]
[368277001,1751085043965,-945.23,0.00020273,2]
[368277002,1751085043977,-2959.3,0.00020273,2]
[368277003,1751085043990,-4178.89,0.00020273,2]
[368277004,1751085044002,-460.0,0.00020273,2]
[368277005,1751085044014,-460.0,0.00020273,2]
[368277006,1751085044027,-460.0,0.00020273,2]
[368277007,1751085044040,-460.0,0.00020273,2]
[368277008,1751085044052,-460.0,0.00020273,2]
[368277009,1751085044064,-929.77,0.00020273,2]
[368277010,1751085044077,-748.96,0.00020273,2]
[368277011,1751085044088,-517.34,0.00020273,2]
[368277012,1751085044099,-2230.94,0.00020273,2]
[368277013,1751085044112,-1772.49,0.00020273,2]
[368277014,1751085044124,-1368.73,0.00020273,2]
[368277015,1751085044135,-460.0,0.00020273,2]
[368277016,1751085044147,-563.94,0.00020273,2]
[368277017,1751085044157,-460.0,0.00020273,2]
[368277018,1751085044167,-460.0,0.00020273,2]
[368277019,1751085044178,-460.0,0.00020273,2]
[368277020,1751085044189,-740.09,0.00020273,2]
[368277021,1751085044201,-1825.1,0.00020273,2]
[368277022,1751085044213,-567.91,0.00020273,2]
[368277023,1751085044226,-4347.56,0.00020273,2]
[368277024,1751085044239,-1456.68,0.00020273,2]
[368277025,1751085044253,-460.0,0.00020273,2]
[368277026,1751085044266,-460.0,0.00020273,2]
[368277027,1751085044280,-460.0,0.00020273,2]
[368277028,1751085044291,-460.0,0.00020273,2]
[368277029,1751085044304,-460.0,0.00020273,2]
[368277030,1751085044315,-460.0,0.00020273,2]
[368277031,1751085044326,-460.0,0.00020273,2]
[368277032,1751085044337,-460.0,0.00020273,2]
[368277033,1751085044347,-410.54,0.00020273,2]
[368277034,1751085044360,-973.88,0.00020273,2]
[368277035,1751085044373,-980.96,0.00020273,2]
[368277036,1751085044385,-833.07,0.00020273,2]
[368277037,1751085044397,-1723.66,0.00020273,2]
[368277038,1751085044408,-510.75801331,0.00020273,2]
[368277039,1751085044418,-460.0,0.00020273,2]
[368277040,1751085044429,-1643.37,0.00020273,2]
[368277041,1751085044440,-2082.61,0.00020273,2]
[368277042,1751085044453,-7703.96641646,0.00020383,3]
[368277043,1751085044464,-1000.0,0.00020511,2]
[368277044,1751085044474,-603.22,0.00020538,3]
[368277045,1751085044484,-490.74,0.00020538,3]
[368277046,1751085044495,-12564.78152626,0.00020538,3]
[368277047,1751085044506,-847.18566335,0.00020538,3]
[368277048,1751085044516,-213.78848551,0.00020538,3]
[368277049,1751085044527,-460.0,0.00020547,2]
[368277050,1751085044538,-508.19,0.00020547,2]
[368277051,1751085044548,-500.0,0.00020547,14]
[368277052,1751085044559,-460.0,0.00020547,2]
[368277053,1751085044569,-666.01,0.00020547,2]
[368277054,1751085044579,-460.0,0.00020547,2]
[368277055,1751085044590,-460.0,0.00020547,2]
[368277056,1751085044601,-729.39,0.00020547,2]
[368277057,1751085044611,-460.0,0.00020547,2]
[368277058,1751085044622,-460.0,0.00020547,2]
[368277059,1751085044632,-460.0,0.00020547,2]
[368277060,1751085044643,-460.0,0.00020547,2]
[368277061,1751085044654,-460.0,0.00020547,2]
[368277062,1751085044664,-2594.14,0.00020547,2]
[368277063,1751085044674,-2386.93,0.00020547,2]
[368277064,1751085044685,-584.03,0.00020547,2]
[368277065,1751085044696,-460.0,0.00020547,2]
[368277066,1751085044707,-672.73,0.00020547,2]
[368277067,1751085044718,-462.16,0.00020547,2]
[368277068,1751085044729,-460.0,0.00020547,2]
[368277069,1751085044740,-1138.53,0.00020547,2]
[368277070,1751085044762,-460.0,0.00020547,2]
[368277071,1751085044777,-460.0,0.00020547,2]
[368277072,1751085044791,-460.0,0.00020547,2]
[368277073,1751085044810,-460.0,0.00020547,2]
[368277074,1751085044823,-460.0,0.00020547,2]
[368277075,1751085044836,-1997.11,0.00020547,2]
[368277076,1751085044848,-460.0,0.00020547,2]
[368277077,1751085044860,-1957.89,0.00020547,2]
[368277078,1751085044872,-460.0,0.00020547,2]
[368277079,1751085044885,-460.0,0.00020547,2]
[368277080,1751085044897,-460.0,0.00020547,2]
[368277081,1751085044909,-460.0,0.00020547,2]
[368277082,1751085044920,-474.82475095,0.00020547,2]
[368277083,1751085044932,-2555.1,0.00020547,2]
[368277084,1751085044943,-626.01,0.00020547,2]
[368277085,1751085044955,-945.23,0.00020547,2]
[368277086,1751085044967,-2959.3,0.00020547,2]
[368277087,1751085044979,-4178.89,0.00020547,2]
[368277088,1751085044993,-460.0,0.00020547,2]
[368277089,1751085045004,-460.0,0.00020547,2]
[368277090,1751085045015,-460.0,0.00020547,2]
[368277091,1751085045027,-460.0,0.00020547,2]
[368277092,1751085045039,-460.0,0.00020547,2]
[368277093,1751085045049,-929.77,0.00020547,2]
[368277094,1751085045061,-748.96,0.00020547,2]
[368277095,1751085045073,-517.34,0.00020547,2]
[368277096,1751085045084,-2230.94,0.00020547,2]
[368277097,1751085045095,-1772.49,0.00020547,2]
[368277098,1751085045106,-1368.73,0.00020547,2]
[368277099,1751085045117,-460.0,0.00020547,2]
[368277100,1751085045128,-563.94,0.00020547,2]
[368277101,1751085045139,-460.0,0.00020547,2]
[368277102,1751085045150,-460.0,0.00020547,2]
[368277103,1751085045162,-460.0,0.00020547,2]
[368277104,1751085045173,-740.09,0.00020547,2]
[368277105,1751085045184,-1825.1,0.00020547,2]
[368277106,1751085045195,-567.91,0.00020547,2]
[368277107,1751085045206,-4347.56,0.00020547,2]
[368277108,1751085045218,-1456.68,0.00020547,2]
[368277109,1751085045229,-460.0,0.00020547,2]
[368277110,1751085045240,-460.0,0.00020547,2]
[368277111,1751085045252,-460.0,0.00020547,2]
[368277112,1751085045264,-460.0,0.00020547,2]
[368277113,1751085045274,-157.8,0.00020547,2]
[368277114,1751085045285,-460.0,0.00020547,2]
[368277115,1751085045297,-460.0,0.00020547,2]
[368277116,1751085045308,-460.0,0.00020547,2]
[368277117,1751085045319,-973.88,0.00020547,2]
[368277118,1751085045331,-980.96,0.00020547,2]
[368277119,1751085045344,-833.07,0.00020547,2]
[368277120,1751085045357,-1723.66,0.00020547,2]
[368277121,1751085045368,-1643.37,0.00020547,2]
[368277122,1751085045378,-2082.61,0.00020547,2]
[368277123,1751085045387,-160.3588391,0.00020573,2]
[368277124,1751085045536,-666.0,0.00020573,2]
[368277125,1751085045574,-25000.0,0.00020573,2]
[368277126,1751085045586,-9311.42036975,0.00020573,2]
[368277127,1751085045595,-5000.0,0.00020573,2]
[368277128,1751085045605,-246.59496078,0.00020573,2]
[368277129,1751085045614,-503.93739225,0.00020573,2]
[368277130,1751085045624,-2001.05393756,0.00020573,2]
[368277131,1751085045633,-500.0,0.00020573,2]
[368277132,1751085045643,-500.0,0.00020573,2]
[368277133,1751085045653,-500.0,0.00020573,2]
[368277134,1751085045662,-500.0,0.00020573,2]
[368277135,1751085045671,-500.0,0.00020573,2]
[368277136,1751085045680,-207.4,0.00020573,2]
[368277137,1751085045689,-500.0,0.00020573,2]
[368277138,1751085045698,-500.0,0.00020573,2]
[368277139,1751085045708,-500.0,0.00020573,2]
[368277140,1751085045717,-500.0,0.00020573,2]
[368277141,1751085045730,-500.0,0.00020573,2]
[368277142,1751085045739,-500.0,0.00020573,2]
[368277143,1751085045749,-500.0,0.00020573,2]
[368277144,1751085045758,-500.0,0.00020573,2]
[368277145,1751085045768,-500.0,0.00020573,2]
[368277146,1751085045778,-500.0,0.00020573,2]
[368277147,1751085045787,-500.0,0.00020573,2]
[368277148,1751085045797,-500.0,0.00020573,2]
[368277149,1751085045809,-500.0,0.00020573,2]
[368277150,1751085045818,-324.854335,0.00020573,2]
[368277151,1751085045828,-324.854335,0.00020573,2]
[368277152,1751085045838,-4088.63,0.000206,2]
[368277153,1751085045847,-160.0,0.00020624,3]
[368277154,1751085045857,-160.0,0.00020624,3]
[368277155,1751085045866,-7703.96641646,0.00020624,3]
[368277156,1751085045875,-690.642,0.00020628,2]
[368277157,1751085045885,-716.195754,0.00020683,2]
[368277158,1751085045894,-405.3,0.00020721,3]
[368277159,1751085045905,-742.6949969,0.00020738,2]
[368277161,1751085045915,-1000.0,0.00020782,2]
[368277162,1751085045924,-770.17471178,0.00020793,2]
[368277164,1751085045934,-172.11808721,0.00020821,2]
[368277165,1751085045943,-508.19,0.00020821,2]
[368277166,1751085045952,-460.0,0.00020821,2]
[368277167,1751085045963,-666.01,0.00020821,2]
[368277168,1751085045972,-460.0,0.00020821,2]
[368277169,1751085045982,-460.0,0.00020821,2]
[368277170,1751085045991,-729.39,0.00020821,2]
[368277171,1751085046000,-460.0,0.00020821,2]
[368277172,1751085046009,-460.0,0.00020821,2]
[368277173,1751085046019,-460.0,0.00020821,2]
[368277174,1751085046029,-460.0,0.00020821,2]
[368277175,1751085046038,-460.0,0.00020821,2]
[368277176,1751085046049,-2594.14,0.00020821,2]
[368277177,1751085046059,-2386.93,0.00020821,2]